Cogmind - Beta 16 @@@ ROGUE MODE // 2025.11.30 @ 13:19:25 Player: Zonalar Result: Destroyed by G-47 Trooper with Particle Gun Performance ------------- Evolutions (2) 1000 Regions Visited (3) 600 Robots Destroyed (63) 315 Value Destroyed (1616) 1616 Prototype IDs (4) 80 Alien Tech Used (0) 0 Bonus (-180) -180 TOTAL SCORE: 3431 Bonus ------- Friendly Fire -180 Cogmind --------- Core Integrity 0/550 Matter 232/300 Energy 102/150 System Corruption 8% Temperature Cool (64) Movement Rolling (100) Location -8/Materials Parts ------- > --- POWER (1) -------- Micro Nuclear Core > --- PROPULSION (2) --- Compact Wheel Compact Wheel > --- UTILITY (4) ------ Improved Heat Sink Advanced Targeting Computer Light Armor Plating Hardlight Generator > --- WEAPON (4) ------- Field Laser Mini Assault Cannon Mini Assault Cannon Mini Assault Cannon > --- INVENTORY (5) ---- Compact Wheel Compact Wheel Cooled Particle Cannon Cooled Particle Cannon Peak State ------------ > --- POWER ------------ Micro Nuclear Core > --- PROPULSION ------- Carbon-fiber Leg Titanium Leg > --- UTILITY ---------- Subdweller Optics Advanced Targeting Computer Light Armor Plating Makeshift Light Armor Plating > --- WEAPON ----------- Cooled Pulse Rifle Cooled Pulse Rifle Cooled Pulse Rifle Makeshift Shrapnel Gun > --- INVENTORY -------- Micro Nuclear Core Micro Nuclear Core Carbon-fiber Leg Heat Sink [Rating: 40] Favorites ----------- Power Subdweller Power Source Engine Subdweller Power Source Power Core Micro Nuclear Core Propulsion Subdweller Monowheel Treads Light Treads Leg Carbon-fiber Leg Wheel Subdweller Monowheel Hover Unit Improved Hover Unit Utility Light Armor Plating Device Shield Generator Storage Medium Storage Unit Processor Advanced Targeting Computer Protection Light Armor Plating Weapon Assault Rifle Energy Gun Beamcaster Energy Cannon Subdweller Beam Cannon Ballistic Gun Assault Rifle Ballistic Cannon Battle Cannon Launcher Grenade Launcher Special Weapon Mining Laser Build | -11 -10 -10 -8 ------- Run | Yrd Mat Sub Mat Slots Evolved 4 | . . . 4 Power . | . . . . Propulsion . | . . . . Utility 2 | . . . 2 Weapon 2 | . . . 2 Parts Attached 84 | 8 16 23 37 Power 10 | 1 2 3 4 Engine 7 | 1 2 3 1 Core 3 | . . . 3 Reactor . | . . . . Propulsion 25 | 2 8 6 9 Treads 4 | 2 2 . . Leg 8 | . 2 1 5 Wheel 10 | . 2 5 3 Hover 3 | . 2 . 1 Flight . | . . . . Utility 20 | 2 4 5 9 Device 10 | 1 2 1 6 Storage 4 | 1 2 . 1 Processor 1 | . . . 1 Hackware . | . . . . Protection 5 | . . 4 1 Artifact . | . . . . Weapon 29 | 3 2 9 15 Energy Gun 11 | 1 . 3 7 Energy Cannon 4 | . . 3 1 Ballistic Gun 6 | 2 . 2 2 Ballistic Cannon 6 | . . 1 5 Launcher 1 | . 1 . . Special Weapon 1 | . 1 . . Impact Weapon . | . . . . Slashing Weapon . | . . . . Piercing Weapon . | . . . . Special Melee Weapon . | . . . . Unidentified Prototypes 4 | . 1 . 3 Parts Lost 18 | . . 2 16 Power 2 | . . . 2 Propulsion 3 | . . . 3 Utility 5 | . . 1 4 Weapon 8 | . . 1 7 Highest Loss Streak 7 | . . 2 7 To Critical Strikes . | . . . . Average Backups 5 | 2 8 4 3 Power . | . 1 . . Propulsion 1 | . 3 . . Utility 2 | . 2 2 1 Weapon 1 | 1 1 1 . Tool/Special . | . . . . Unused Backups 21 | . 6 7 8 Power 6 | . 4 2 . Propulsion 4 | . 1 2 1 Utility 4 | . 1 1 2 Weapon 6 | . . 2 4 Tool/Special 1 | . . . 1 Average Slot Usage (%) 85 | . 97 87 76 Engine 9 | . 14 13 . Core 2 | . . . 7 Treads 1 | . 7 . . Leg 9 | . 16 8 6 Wheel 7 | . 1 13 3 Device 11 | . 14 8 13 Storage 4 | . 13 . 3 Processor 2 | . . . 7 Protection 7 | . . 13 5 Energy Gun 10 | . . 12 14 Energy Cannon 2 | . . 6 . Ballistic Gun 7 | . 20 . 6 Ballistic Cannon 4 | . . 6 3 Launcher 1 | . 6 1 . Peak Build Rating 40 | 7 13 19 40 Average Rating 17 | 4 9 15 24 On Entrance 9 | . 7 12 18 Avg Prop Armor Cover (%) 4 | . 5 3 6 Naked Turns . | . . . . Heaviest Build 34 | 15 24 34 33 Greatest Support 40 | 40 40 40 40 Greatest Overweight (x) 11 | . 7 11 7 Average Overweight (x) . | . . . 1 Largest Inventory Capacity 10 | 8 10 10 10 Average Capacity 6 | 5 9 5 7 Most Carried 10 | 5 10 10 10 Average Carried 5 | 2 8 4 3 Final Capacity 10 | 8 10 5 5 Final Carried 10 | 4 10 5 4 Class Distribution -------------------- 61% | Mutant 12% | Scavenger-Mutant 9% | Subdweller-Mutant 8% | Tank 4% | Gunner 3% | Derelict-Tank Dominant Class ---------------- Mutant | -10/Materials Mutant | -10/Subcaves Mutant | -8/Materials Resources | -11 -10 -10 -8 ----------- Run | Yrd Mat Sub Mat Matter Collected 2176 | 261 182 712 1021 Remotely . | . . . . Salvage Created 1984 | 158 230 482 1114 Parts 122 | 13 22 32 55 Haulers Intercepted 2 | . 2 . . Recyclers Shooed . | . . . . Parts Field Recycled . | . . . . Retrieved Matter . | . . . . Parts Self-Destructed 7 | . . 7 . Prevented . | . . . . Parts Restored . | . . . . Kills | -11 -10 -10 -8 ------- Run | Yrd Mat Sub Mat Combat Hostiles Destroyed 37 | . 5 8 24 Guns 17 | . . . 17 Cannons 10 | . . 3 7 AOE 10 | . 5 5 . Classes Destroyed 14 | 3 5 2 4 Worker 4 | 1 1 . 2 Builder 3 | . 3 . . Tunneler 4 | 4 . . . Hauler 2 | . 2 . . Recycler 4 | 1 . . 3 Operator 2 | . . . 2 Watcher 6 | . 3 . 3 Swarmer 9 | . 3 . 6 Grunt 14 | . 2 . 12 Sentry 3 | . . 1 2 Specialist 1 | . . . 1 Hunter 2 | . . . 2 Heavy 1 | . . . 1 Subdweller 7 | . . 7 . Thug 1 | . . 1 . Best Kill Streak 6 | 2 4 4 6 Combat Bots Only 6 | . 3 4 6 Max Kills in Single Turn 3 | 1 3 2 1 Gunslinging . | . . . . Exploded 3 | . 3 2 . Melee . | . . . . Uniques/NPCs Destroyed . | . . . . Combat | -11 -10 -10 -8 -------- Run | Yrd Mat Sub Mat Hostile Shots Fired 257 | . 10 19 228 Missed 88 | . 3 8 77 Hits 169 | . 7 11 151 Projectile 169 | . 7 11 151 AOE 2 | . . 2 . Critical Strikes 9 | . . 2 7 Damage Taken 3152 | 20 156 403 2573 Core 630 | . 40 37 553 Absorbed by Shields 115 | . . 10 105 Regen/Repaired (Parts) 75 | . . . 75 Core Remaining (%) 84 | 100 . 69 . Volleys Fired 205 | 10 20 73 102 Largest 4 | 2 2 2 4 Hottest 214 | 60 100 155 214 Shots Fired 385 | 18 32 111 224 Gun 259 | 18 23 52 166 Cannon 107 | . . 49 58 Launcher 17 | . 7 10 . Special 2 | . 2 . . Kinetic 185 | 11 23 35 116 Thermal 175 | . 2 66 107 Explosive 17 | . 7 10 . Electromagnetic 8 | 7 . . 1 Robot Hit Streak 13 | 3 7 11 13 Robot Miss Streak 5 | 1 1 1 5 Penetration Max . | . . . . Secondary Targets 4 | . . . 4 Max Gunslinging Chain 1 | . . . 1 Shots Hit Robots 215 | 12 16 35 152 Core Hits 124 | 7 17 19 81 Critical Kills . | . . . . Critical Parts Destroyed . | . . . . Critical Strikes 5 | . . . 5 Burn 4 | . . . 4 Blast 1 | . . . 1 Melee Attacks . | . . . . Impact . | . . . . Slashing . | . . . . Piercing . | . . . . Sneak Attacks . | . . . . Combat Hostiles . | . . . . Follow-up Attacks . | . . . . Damage Inflicted 5310 | 174 553 1239 3344 Guns 2828 | 150 171 123 2384 Cannons 1456 | . . 501 955 Explosions 1021 | 24 382 615 . Melee . | . . . . Ramming 5 | . . . 5 Kinetic 2202 | 98 171 192 1741 Thermal 2023 | 24 . 432 1567 Explosive 997 | . 382 615 . Electromagnetic 83 | 52 . . 31 Impact . | . . . . Slashing . | . . . . Piercing . | . . . . Highest Corruption 8 | . . . 8 Average Corruption 8 | . . . 8 Corruption Purged . | . . . . Corruption Blocked . | . . . . Effects 38 | . . . 38 Message Errors 10 | . . . 10 Matter Fused 7 | . . . 7 Heat Flow Errors 4 | . . . 4 Energy Discharges 3 | . . . 3 Parts Rejected 2 | . . . 2 Data Loss (minor) 3 | . . . 3 Data Loss (major) 2 | . . . 2 Misfires 2 | . . . 2 Weapon Failures 5 | . . . 5 Overload Shots 19 | . . . 19 Effects 1 | . . . 1 Energy Bleed 1 | . . . 1 Overflow Damage 12 | . 12 . . Projectiles . | . . . . Explosions 12 | . 12 . . Melee . | . . . . Knockbacks 17 | . . 1 16 Impact . | . . . . Kinetic 16 | . . 1 15 Secondary 1 | . . . 1 Self-Inflicted Damage 90 | 20 . 68 2 Shots 3 | 1 . 2 . Rammed 1 | . . . 1 Targets Rammed 1 | . . . 1 Kicked . | . . . . Crushed . | . . . . Highest Temperature 520 | 12 40 54 520 Average Temperature 117 | 12 19 18 137 Received Heat Transfer 479 | . 42 56 381 Effects 8 | . . . 8 Shutdowns 3 | . . . 3 Energy Bleed 1 | . . . 1 Interference 2 | . . . 2 Matter Decay 1 | . . . 1 Damage (minor) 1 | . . . 1 Siege Activations . | . . . . Martial Activations . | . . . . Shielding Activations . | . . . . Robots Disrupted . | . . . . Combat Hostiles . | . . . . Robots Corrupted . | . . . . Combat Hostiles . | . . . . Parts Fried . | . . . . Impact Corruptions . | . . . . Robots Melted . | . . . . Combat Hostiles . | . . . . Parts Melted 6 | 1 . . 5 Heat Transferred 3945 | 50 . 605 3290 Parts Sabotaged . | . . . . Parts Stolen . | . . . . Parts Stripped . | . . . . Power Chain Reactions 1 | 1 . . . Alert | -11 -10 -10 -8 ------- Run | Yrd Mat Sub Mat Maximum Alert Level 1 | . 1 . 1 Low Security (%) 90 | 100 83 . 93 Level 1 9 | . 16 . 6 Level 2 . | . . . . Level 3 . | . . . . Level 4 . | . . . . Level 5 . | . . . . High Security . | . . . . Max Security . | . . . . Peak Influence 244 | 10 244 . 227 Initial . | . . . . Average 70 | 1 53 . 87 Influence Increases 1143 | 30 367 20 726 Destroy 0b10 Robot/C 600 | . 100 20 480 Destroy 0b10 Robot/NC 125 | 30 45 . 50 Destroy Leader 156 | . 40 . 116 Successful Hack 35 | . 18 . 17 Disable Machine 15 | . 15 . . Destroy Structure 62 | . 44 . 18 Lose Combat Pursuer 150 | . 105 . 45 Influence Decreases 992 | 30 169 218 575 Entered New Map 96 | . . 96 . Time Decay 716 | 30 169 102 415 Lost Part 180 | . . 20 160 Squads Dispatched 8 | . 2 . 6 Investigation 2 | . . . 2 Extermination . | . . . . Reinforcement 6 | . 2 . 4 Assault . | . . . . Garrison . | . . . . Intercept . | . . . . Searches Triggered . | . . . . Construction Impeded 1 | . . . 1 Haulers Reinforced . | . . . . Active Scanning Responses . | . . . . Cargo Convoy Interrupts . | . . . . Stealth | -11 -10 -10 -8 --------- Run | Yrd Mat Sub Mat Distress Signals 4 | . . . 4 Communications Jammed . | . . . . Distress Signals . | . . . . Times Spotted 82 | . 18 19 45 Peak Tracking Total 8 | . 5 5 8 Tactical Retreats 5 | . 2 . 3 Traps | -11 -10 -10 -8 ------- Run | Yrd Mat Sub Mat Traps Triggered 3 | . 2 . 1 Indirectly . | . . . . Trap Hack Attempts . | . . . . Triggered . | . . . . Disarmed 6 | . 6 . . Reprogrammed . | . . . . Reused . | . . . . Traps Extracted . | . . . . Installed . | . . . . Triggered . | . . . . Machines | -11 -10 -10 -8 ---------- Run | Yrd Mat Sub Mat Machines Disabled 1 | . 1 . . Max in Single Turn 1 | . 1 . . Machines Repaired . | . . . . Machines Dismantled . | . . . . Machines Sabotaged . | . . . . Overloaded Fab Kills . | . . . . Hacking | -11 -10 -10 -8 --------- Run | Yrd Mat Sub Mat Machines Accessed 12 | . 6 . 6 Terminals 10 | . 5 . 5 Fabricators . | . . . . Repair Stations 1 | . . . 1 Recycling Units 1 | . 1 . . Scanalyzers . | . . . . Garrison Access . | . . . . Total Hacks 30 | . 16 . 14 Successful 18 | . 10 . 8 Failed 12 | . 6 . 6 Catastrophic . | . . . . Database Lockouts . | . . . . Manual 25 | . 12 . 13 Terminals 27 | . 15 . 12 Fabricators . | . . . . Repair Stations 2 | . . . 2 Recycling Units 1 | . 1 . . Scanalyzers . | . . . . Garrison Access . | . . . . Terminal Hacks 5 | . 4 . 1 Record 1 | . 1 . . Robot Analysis 1 | . . . 1 Locate Traps 1 | . 1 . . Disarm Traps 1 | . 1 . . Maintenance Status 1 | . 1 . . Fabricator Hacks . | . . . . Repair Station Hacks 2 | . . . 2 Scan Component 1 | . . . 1 Repair 1 | . . . 1 Recycling Unit Hacks 1 | . 1 . . Report Inventory 1 | . 1 . . Scanalyzer . | . . . . Garrison Access Hacks . | . . . . Unauthorized Hacks 10 | . 5 . 5 Terminals 10 | . 5 . 5 Botnet 10 | . 5 . 5 Fabricators . | . . . . Repair Stations . | . . . . Recycling Units . | . . . . Scanalyzers . | . . . . Garrison Access . | . . . . Data Cores Recovered 1 | . . . 1 Used . | . . . . Hacking Detections 9 | . 5 . 4 Full Trace Events 3 | . 1 . 2 Feedback Events . | . . . . Feedback Blocked . | . . . . Robot Schematics Acquired . | . . . . Robots Built . | . . . . Authchips . | . . . . Time . | . . . . Total Robot Build Rating . | . . . . Part Schematics Acquired . | . . . . Parts Built . | . . . . Authchips . | . . . . Time . | . . . . Total Part Build Rating . | . . . . Part Studies Acquired . | . . . . Parts Repaired 1 | . . . 1 Time 26 | . . . 26 Parts Recycled . | . . . . Recycled Matter . | . . . . Retrieved Matter . | . . . . Retrieved Components . | . . . . Parts Scanalyzed . | . . . . Part Schematics Acquired . | . . . . Parts Damaged . | . . . . Bothacking | -11 -10 -10 -8 ------------ Run | Yrd Mat Sub Mat Used RIF Installer . | . . . . Robots Hacked . | . . . . Non-combat . | . . . . Combat . | . . . . Robot Hacks Applied . | . . . . Relay Couplers Released . | . . . . Fabnet Peak Effective % . | . . . . Robots Rewired . | . . . . Allies Hacked . | . . . . Hacks Repelled . | . . . . Allies | -11 -10 -10 -8 -------- Run | Yrd Mat Sub Mat Total Allies . | . . . . Largest Group . | . . . . Highest-Rated Group . | . . . . Highest-Rated Ally . | . . . . Total Orders . | . . . . Ally Attacks . | . . . . Total Damage . | . . . . Kills . | . . . . Allies Corrupted . | . . . . Allies Melted . | . . . . Intel | -11 -10 -10 -8 ------- Run | Yrd Mat Sub Mat Active Infowar (turns) 1579 | 22 912 167 478 Optics 643 | . . 165 478 Sensors 538 | . 536 2 . Seismic 398 | 22 376 . . Robot Analysis Total 1 | . . . 1 Derelict Logs Recovered 3 | . . 3 . Drone Launches . | . . . . Drone Recoveries . | . . . . Exploration | -11 -10 -10 -8 ------------- Run | Yrd Mat Sub Mat Turns Passed 4401 | 142 952 1798 1509 Spaces Moved 2250 | 65 617 967 601 Core 123 | 11 1 6 105 Treads 213 | 54 159 . . Legs 990 | . 399 341 250 Wheels 851 | . 40 620 191 Hover 73 | . 18 . 55 Flight . | . . . . Fastest Speed 50 | 50 56 110 100 Average Speed 148 | 141 126 148 172 Slowest Speed 600 | 160 400 600 400 Overloaded Moves . | . . . . Propulsion Burnouts . | . . . . Robots Hopped . | . . . . Potential Cave-ins . | . . . . Cave-ins Triggered 1 | . . . 1 Exploration Rate (%) 49 | 5 78 60 53 Regions Visited 3 Branch Regions 1 Pre-discovered Areas 1 | . . 1 . Known Exits Taken 1 | . . 1 . Unknown Exits Taken 2 | 1 1 . . Scrap Searched 5 | . . 5 . Spaces Dug 32 | . 2 24 6 Terrain Destroyed 111 | . 43 53 15 Melee . | . . . . Projectile 18 | . 2 1 15 AOE 93 | . 41 52 . Terrain Rammed . | . . . . Walls Destroyed . | . . . . Machines Disabled . | . . . . Actions | -11 -10 -10 -8 --------- Run | Yrd Mat Sub Mat Total 2969 | 97 753 1218 901 Wait 232 | 2 57 101 72 Move 2247 | 64 616 966 601 Hop . | . . . . Pick Up 91 | 12 23 15 41 Fast Attach 23 | . 2 13 8 Attach 48 | 7 4 4 33 Detach 7 | . . 2 5 Swap 35 | 1 12 12 10 Drop 75 | 1 19 27 28 Fire 205 | 10 20 73 102 Melee . | . . . . Ram 1 | . . . 1 Kick . | . . . . Crush . | . . . . Escape Stasis . | . . . . Rewire . | . . . . Trap . | . . . . Miscellaneous 5 | . . 5 . Route ------- -11/Scrapyard -10/Materials (discovered 5 exits: [*Mat x2] / [*Min x2] / [*Sub]) -10/Subcaves (discovered 2 exits: *Mat x2) -8/Materials (discovered 1 exit: [*Fac]) History --------- Turn | Location | Event 8 | -11/Scrapyard | Discovered new exit (range 15) 143 | -11/Scrapyard | Entered Materials 275 | -10/Materials | Discovered new exit (range 7) 433 | -10/Materials | Discovered new exit (range 7) 580 | -10/Materials | Build established: Mutant 682 | -10/Materials | Discovered new exit (range 12) 717 | -10/Materials | Discovered new exit (range 11) 765 | -10/Materials | Discovered new exit (range 9) 1095 | -10/Materials | Entered Subcaves 1096 | -10/Subcaves | Approached by a straggling Scientist 1099 | -10/Subcaves | Identified exit to Materials 1212 | -10/Subcaves | Ambushed by swarm of Subdwellers 1354 | -10/Subcaves | Learned location of Zion (-7) 1563 | -10/Subcaves | A swath of the cavern ceiling suddenly collapsed 1663 | -10/Subcaves | Shifting Twisted Machinery released Battle Rifle 1673 | -10/Subcaves | Shifting Twisted Machinery released Sub. Beam Cannon 1915 | -10/Subcaves | Shifting Twisted Machinery released Sub. Laser 1915 | -10/Subcaves | Shifting Twisted Machinery released Mak. Light Armor Plating 1962 | -10/Subcaves | Learned 4 Materials zone layouts 2326 | -10/Subcaves | A swath of the cavern ceiling suddenly collapsed 2431 | -10/Subcaves | Shifting Twisted Machinery released Sub. Laser 2463 | -10/Subcaves | Discovered exit to Materials (range 13) 2893 | -10/Subcaves | Entered Materials 2893 | -8/Materials | Evolved 4 slots: Utility x2, Weapon x2 3030 | -8/Materials | Repaired Lgt. Armor Plating 3340 | -8/Materials | Build established: Tank 3393 | -8/Materials | Crushed by falling debris 3472 | -8/Materials | Discovered new exit (range 10) 3514 | -8/Materials | Core integrity fell below 50% 3544 | -8/Materials | Lost 7 parts (1p2n1u3w) 3598 | -8/Materials | Core integrity fell below 20% 3782 | -8/Materials | Build established: Mutant 4402 | -8/Materials | Destroyed by G-47 Trooper with Particle Gun Last Messages --------------- 04368_ Dropped Reactive Plating. 04368_ R-06 Scavenger collects Wheel. 04370_ Dropped Med. Storage Unit. 04371_ Acquired Com. Wheel. 04381_ H-55 Commando destroyed. 04381_ R-06 Scavenger Com. Wheel blasted off. 04385_ K-01 Serf collects debris. 04385_ Acquired 78 matter. 04387_ K-01 Serf collects debris. 04388_ W-25 Informer sends out distress signal. 04391_ K-01 Serf collects debris. 04391_ Slammed into R-06 Scavenger. 04391_ Destabilizing: Core damaged (-22). 04393_ System corrupted: Mni. Assault Cannon rejected. 04393_ Acquired Mni. Assault Cannon. 04395_ K-01 Serf collects debris. 04396_ U-05 Engineer builds a Wall. 04400_ W-25 Informer suffers critical hit (Burn). 04400_ W-25 Informer destroyed. 04400_ G-47 Trooper knocked back. Map ----- +----------------------------------------------------+ | ?????# "" #?????????????????????????????????? | | ?????#%"" "" #?????????????????????????????????? | | ?????# "T """ #?????????????????????????????????? | | ????## "" """" #?????????????????????????????????? | | ????# "" #?????????????????????????????????? | | ????## #?????????????????????????????????? | | ?????###########?????????????????????????????????? | | ?????????????????????????????????????????????????? | | ?????????????????????????????????????????????##### | | ?????????????????????????????????????????????# | | ????????###########??????????????????????????# | | ????????# #??????????????????????????# " " | | ??####### #??????????????????????????# "T" | | ### # #??????????????????????????# """ | | # #??????????????????????????# | | T + #???###########????????????##### | | # #???# #????????????????? | | ### # ##### #????????????????? | | #### ## + + #????????????##### | | # ################ #????????????# | | # #??????????????# #????????????# | | + #??????????????# #????????????# | | # #??????????????# % #????????????# # | | # #??????????????# #????????????# # | | # ###################+##########????????# # | | #### % % @ =*%%g + ??????# / | | ???# =k=% r m ;########????????# # | | ???# %%u u uk a* k ##???????????????# # | | ???#"" %* ### !! ######%##????????????????# # | | ???#"T = ###=] #????#*#????????????????? | | ???#"" ###][!! [#????# #????????????????? | | #### #?#][!! #????# #????????????????? | | ] #?########????# #????????????????? | | ### #?????????????# #????????????????? | | #?# #?????????????# #?????????????????##### | | ########?# #?????????????#+#????????????????? | | ########?# #?????????????? ?????????????????? | | / ### #??????????????"?????????????????? | | + #??????????????"?????????????????? | | "" # #????????????????????????????????? | | "" + ########?????????????????????????? | | "" # # #?????????????????????????? | | "" # # """ #??????????????????????????####+ | | S"" # # """ #???????????????????????????# | | "" # # """ #??????????????????????????## | | ######## + #?????????????????????????? | | # # #????????######????????????????? | | !!# ########??????#?? #????????????????? | | # # #????????# """ #????????????????? | | # # #????????# """ #????????????????? | +----------------------------------------------------+ Best States ------------- Heat Dissipation 59 Energy Generation 15 Energy Capacity 280 Matter Stores 300 Matter Capacity 350 Sight Range 21 Robot Scan Range 14 Terrain Scan Density 10 Armor Coverage 800 Evasion (%) 55 Targeting Accuracy 8 Recoil Reduction 2 Item Schematics ----------------- None Robot Schematics ------------------ None Fabricated ------------ Nothing Repaired ---------- Lgt. Armor Plating | 16% | -8/Materials Studied --------- None Alien Tech Used ----------------- None Achievements -------------- Hydra Spot Them First Survival Of The Most Covered Challenges ------------ None Game ------ Seed ShiftEncryptedWall Manual? 0 Play Time 01:56:24 Cumulative 33.0 hours Start 2025.11.30 @ 11:05:30 End 2025.11.30 @ 13:19:25 Sessions 1 Manual Loads 0 Difficulty Rogue Special Mode None Game No. 13 Rogue 13 Adventurer 0 Explorer 0 Win Type - Total 0 Types 0/0/0/0/0/0/0/0/0/0 Lore% 7 Gallery% 22 Achievement% 15 Wizard Run 0 Options --------- Layout 0 ASCII 0 Keyboard 0 Movement Mouse Keybinds 1 Fullscreen 2 Font 24/Smallcaps Map View 76x50 Zoom Use 0% Tactical HUD 1 Map Filters NONE Filters NONE Steam 1 RUN: e0a59d23-9c3e-48c9-8a59-1661e647f62f